{"text_format":"1","workbook":"xlsx","n_sheets":2,"sheets":["MATRIZ SIVA","METODOLOGIA ANEXO1 "],"not_rendered":{"charts":0,"images":6,"macros":1,"external_links":0,"defined_names":19,"comments":1,"pivot_tables":0},"unopened":[],"bounds":{"document_bytes":16777216,"sheet_cells":100000,"rows_first":2000,"rows_last":500,"rows_between":2000,"halvings":0,"cell_chars":16384,"cell_head_chars":4096},"cells_cut":0,"cells_raw":0,"read":"whole","date_system":"1900"}

{"sheet":"MATRIZ SIVA","index":0,"n_rows":37,"n_cols":27,"rows_kept":37,"cut":false,"hidden":false,"merged":[[13,2,18,2],[13,1,18,1],[6,7,7,7],[13,3,18,3],[19,2,24,2],[19,1,24,1],[19,3,24,3],[6,0,7,1],[8,0,12,0],[13,0,18,0],[19,0,24,0],[6,8,6,10],[6,11,6,17],[8,1,12,1],[8,2,12,2],[8,3,12,3],[30,0,36,3],[25,0,29,0],[0,3,0,26],[1,3,1,26],[3,2,3,6],[3,14,3,16],[3,22,3,24],[2,0,5,1],[0,0,1,2],[6,19,6,21],[6,22,6,26],[25,1,29,1],[25,2,29,2],[25,3,29,3],[4,2,5,14],[6,5,6,6]]}
[null,null,null,"Matriz de identificación de peligros y evaluación del riesgo"]
[null,null,null,"Sistema de Gestión de Seguridad y Salud en el Trabajo"]
["CENTRO DE TRABAJO: "]
[null,null,"SIVA S.A.S",null,null,null,null,null,null,null,null,null,null,"ELABORADO POR :","RAFAEL HERRON MARTIENEZ ",null,null,null,null,null,"FECHA CREACION:",null,"2025-04-10"]
[]
[]
["PROCESO / CARGO",null,"ACTIVIDADES","TAREAS","RUTINARIA (Sí o No)","PELIGRO",null,"EFECTOS POSIBLES","CONTROLES EXISTENTES",null,null,"EVALUACIÓN DEL RIESGO",null,null,null,null,null,null,"VALORACIÓN DEL RIESGO","CRITERIOS PARA ESTABLECER CONTROLES",null,null,"MEDIDAS DE INTERVENCIÓN"]
[null,null,null,null,null,"DESCRIPCIÓN","CLASIFICACIÓN",null,"FUENTE ","MEDIO","INDIVIDUO","NIVEL DE DEFICIENCIA","NIVEL DE EXPOSICIÓN","NIVEL DE PROBABILIDAD","INTERPRETACIÓN NIVEL DE PROBABILIDAD","NIVEL DE CONSECUENCIA","NIVEL DE RIESGO E INTERVENCIÓN","INTERPRETACIÓN DEL NIVEL DE RIESGO (NR)","ACEPTABILIDAD DEL RIESGO","Nro. EXPUESTOS","PEOR CONSECUENCIA","EXISTE REQUISITO LEGAL","ELIMINACIÓN","SUSTITUCIÓN","CONTROLES DE INGENIERÍA","CONTROLES ADMINISTRATIVOS, SEÑALIZACIÓN, ADVERTENCIA","EQUIPOS / ELEMENTOS DE PROTECCIÓN PERSONAL"]
["PROCESOS ESTATRATEGICOS","Gerente, Profesional de planeación, Profesional en gestión administrativa y de talento humano, profesional en gestión de comunicaciones, profesional en finanzas","Ejecución de labores administrativas (planear, organizar, dirigir, coordinar y controlar), de acuerdo a perfil y gestión a cargo.","Celebrar y ejecutar a nombre de la sociedad, todos los actos y contratos relacionados directamente con el objeto social de la empresa.","Si","Firma de documentación y digitación de teclado de equipos de computo","5.6. Biomecánico: Movimientos repetitivos","Muscular: calambres o debilidad muscular\nTambién comunes: sensibilidad, articulación rígida o sensación de hormigueo","Estudio de puesto de tranajo ","No Existente","Charlas puesto a puesto sobre ergonomia ","-",3,1,{"$f":"IF(AND(N9>=24,N9<=40),\"Muy Alto\",IF(AND(20>=N9,10<=N9),\"Alto\",IF(AND(8>=N9,6<=N9),\"Medio\",IF(N9<=4,\"Bajo\",\"-\"))))","v":"Bajo"},10,{"$f":"N9*P9","v":10},{"$f":"IF(AND(Q9>=600,Q9<=4000),\"I\",IF(AND(500>=Q9,150<=Q9),\"II\",IF(AND(120>=Q9,40<=Q9),\"III\",IF(Q9<=20,\"IV\",\"-\"))))","v":"IV"},{"$f":"IF(R9=\"I\",\"No Aceptable\",IF(R9=\"II\",\"Aceptable con controles\",\"Aceptable\"))","v":"Aceptable"},30,"Deterioro de la fuerza ejercida a nivel de articulaciones de los dedos de las manos y patologías como túnel del Carpio, tendinitis, bursitis y síndromes de atrapamiento nervioso","Decreto 1072/2015,  Resolución 2844/2007","---","---","---","\n\nPrograma de Capacitaciones , pausas activas, capacitacion en higiene postural, charlas puesto a puesto en ergonomia , pausas activas autonomas cada 1 hora \n\n","No Aplica"]
[null,null,null,null,"Si","Ejecución de labores administrativas adoptando una postura prolongada, trabajo en computador en posición sedente.","5.1. Biomecánico: Postura prolongada","Desalinear el sistema musculoesquelético\nDesgastar la columna vertebral\nCausar dolor en el cuello, hombros y espalda","Estudio de puesto de tranajo ","No Existente","Reposa pies",2,2,{"$f":"L10*M10","v":4},{"$f":"IF(AND(N10>=24,N10<=40),\"Muy Alto\",IF(AND(20>=N10,10<=N10),\"Alto\",IF(AND(8>=N10,6<=N10),\"Medio\",IF(N10<=4,\"Bajo\",\"-\"))))","v":"Bajo"},10,{"$f":"N10*P10","v":40},{"$f":"IF(AND(Q10>=600,Q10<=4000),\"I\",IF(AND(500>=Q10,150<=Q10),\"II\",IF(AND(120>=Q10,40<=Q10),\"III\",IF(Q10<=20,\"IV\",\"-\"))))","v":"III"},{"$f":"IF(R10=\"I\",\"No Aceptable\",IF(R10=\"II\",\"Aceptable con controles\",\"Aceptable\"))","v":"Aceptable"},30,"disminuir la flexibilidad\nDegeneración de los músculos\nMala circulación en las piernas\nDisminución del ritmo cardíaco\nEnfermedades cardiovasculares\nDiabetes tipo 2\nLumbalgia \n\n\n\n","Decreto 1072/2015,  Resolución 2844/2007","No Aplica","No Aplica","Reposa pies","Implementar Sistema de Vigilancia Epidemiológica para DME.  Implementar programa de pausas activas, llevar control de su realización. Capacitación en higiene postural.charlas sobre ergonomia. Pausas activas autonomas cada 1 horas ","No Aplica"]
[null,null,null,null,"Si","Gestion organizacional, responsabilidades altas del cargo, trabajo bajo presión, entrega de informes","4.1. Psicosocial: Gestión organizacional"," Estrés laboral","No Existente","No Existente","capacitaciones sobre prevencion del riesgo psicosocial y salud mental",2,2,{"$f":"L11*M11","v":4},"Bajo",25,100,"III","Aceptable",30,"Agotamiento, ansiedad, depresión, angustia, síndrome de estar quemado, dificultades para concentrarse y tomar decisiones, irritabilidad, desánimo, adopción de hábitos nerviosos, agresividad, violencia","Resolución 2346 de 2007 y Resolución 2764 de 2022",null,"---","---","Capacitación para prevención al riesgo psicosocial y aplicación de la batería del riesgo psicosocial, acoso laboral. ","No Aplica"]
[null,null,null,null,"Si","Utilización de grapadores, tijeras  ganchos, sacagrapas, exactos, perforadora, taches.   ","6.1. Mécanico","Pinchazos, golpes y laceraciones ","No Existente","No Existente","Charlas en Autocuidado charla sobre riesgo mecanico ",2,3,3,"Medio",10,20,"IV","Aceptable",30,"Lesiones leves en manos, brazos o cuerpo. ","Resolución 2400 de 1979 , Decreto 2106 de 2019 la modificó","No Aplica","No Aplica",null,"Capacitación sobre el riesgo mecánico incluido en la inducción y reinducción.capacitacion en identificacion peligros y evaluacion y controles de riesgo. Charlar sobre orden y aseo  ","No Aplica"]
[null,null,null,null,"Si","Recorrido por areas de la empresa, orden y aseo, almacenamientos, sobrecarga de puestos de trabajo, cables atravezados. Areas externas con distinto nivel . ","6.5. Locativo: Orden y Aseo","Caídas al mismo nivel\nChoques o golpes contra objetos\nDesplomes o derrumbamientos de objetosContactos con sustancias nocivas\nPinchazos y cortes\nIncendios\nLesiones. ","Orden y aseo constante","areas de trabajo y areas de movilidad sin obstaculizacion ","Charlas en Autocuidado y orden y aseo ",6,4,24,"Muy Alto",10,240,"II","Aceptable con controles",30,"Caídas al mismo nivel\nChoques o golpes contra objetos\nDesplomes o derrumbamientos de objetos\nPinchazos y cortes\nIncendios\nLesiones","Resolución 2400 de 1979 , Decreto 2106 de 2019 la modificó","No Aplica","No Aplica","No Aplica","Capacitación de prevención al riesgo locativo y formato de reporte de riesgos, capacitacion en higiene industrial, charlas en orden y aseo. Realizar inspecciones locativas. ","No Aplica"]
["PROCESOS DE APOYO","Asesor jurídico, Profesional de gestión administrativa y Tic, Profesional de gestión documental","Ejecución de labores administrativas (planear, organizar, coordinar y controlar)","Asesorar, gestionar y apoyar jurídicamente, el funcionamiento interno del Ente Gestor, mediante el apoyo a las diferentes áreas para el cumplimiento de los objetivos de la empresa.","Si","Robo, atraco, secuestro en actividades de gestión empresarial","6.8. Público (Robos, atracos, atentados, orden público,etc.)","Asaltos, lesiones personales, pérdidas humanas, traumas psicológicos, pérdidas materiales, fatalidad.","No Existente","estudio de entorno ","capacitacion en riesgo publico, divulgacion de los riesgos presentes ",6,4,{"$f":"L14*M14","v":24},{"$f":"IF(AND(N14>=24,N14<=40),\"Muy Alto\",IF(AND(20>=N14,10<=N14),\"Alto\",IF(AND(8>=N14,6<=N14),\"Medio\",IF(N14<=4,\"Bajo\",\"-\"))))","v":"Muy Alto"},10,{"$f":"N14*P14","v":240},{"$f":"IF(AND(Q14>=600,Q14<=4000),\"I\",IF(AND(500>=Q14,150<=Q14),\"II\",IF(AND(120>=Q14,40<=Q14),\"III\",IF(Q14<=20,\"IV\",\"-\"))))","v":"II"},{"$f":"IF(R14=\"I\",\"No Aceptable\",IF(R14=\"II\",\"Aceptable con controles\",\"Aceptable\"))","v":"Aceptable con controles"},30,"lesiones personales, pérdidas humanas, traumas psicológicos, pérdidas materiales, fatalidad. ","Decreto 1072/2015,  ","No Aplica","No Aplica","No Aplica","Capacitación de prevención al riesgo publico y autocuidado en el entorno laboral. Induccion locativa. Cambio de horario laboral. ","No Aplica"]
[null,null,null,null,"si","Adopción de malas posturas, jornadas largas de trabajos, movimientos repetitivos,  posturas sedentarias por mucho tiempo ","5.1. Biomecánico: Postura prolongada","Desalinear el sistema musculoesquelético\nDesgastar la columna vertebral\nCausar dolor en el cuello, hombros y espalda","Estudio de puesto de tranajo ","No Existente","Reposa pies",2,2,4,"Bajo",10,40,"III","Aceptable",30,"Lesiones severas a nivel de la columna vertebral, calambres en miembros inferiores","Decreto 1072/2015,  Resolución 2844/2007","No Aplica","No Aplica","Reposa pies,  pad mouse"," Programa de Vigilancia Epidemiológica de DME, capacitación en higiene postural, pausas activas  \n","No Aplica"]
[null,null,null,null,"Si","Exposicion a roedores, insectos, restiles, plagas ","1.6. Biológico: Mordeduras","Contraer la enfermedad: fiebre, tos, dificultad para respirar, flema, alergia vomito, diarrea, cansancio y debilidad. Intonxicacion  Muerte en casos graves.","Fumigar ","realizar podas a las areas verdes y realizar fumigaciones internas y externas  ","capacitaciones de higiene en lavado de manos, uso de tapabocas.",6,4,{"$f":"L16*M16","v":24},"Muy Alto",10,240,"II","Aceptable con controles",30,"Resfriado, malestar general, fiebre, congestión nasal, tos. Infecciones, Alergias, Intoxicaciones, Envenenamiento","Ley 1562 de 2012, la Ley 9 de 1979, y el Decreto 1477 de 2014","---","---","realizar fumigaciones contra plagas y roedores ","Capacitaciones  de autocuidado, sensibilización de lavado de manos, manejo y correcto uso de tapa bocas de ser necesario. Capacitacion en riesgo biologico, charlas sobre especies existentes en el entorno. Induccion locativa ","No Aplica"]
[null,null,null,null,"si","Características del grupo social de trabajo (Trabajadores planta, contratistas)","4.2. Psicosocial: Caracteristicas de la organización del trabajo","Estrés laboral  por la responsabilidad del trabajo.","No Existente","No Existente","capacitaciones sobre prevencion del riesgo psicosocial y salud mental",2,2,{"$f":"L17*M17","v":4},"Bajo",10,40,"III","Aceptable",30,"Estrés Laboral, Ansiedad, Irritabilidad, Mal humor, Depresión, Nerviosismo, Apatía, Aburrimiento,  Ausentismo. Baja productividad,  Agotamiento físico. Insatisfacción laboral.","Resolución 2346 de 2007 y Resolución 2764 de 2022","No Aplica","No Aplica","No Aplica","Pausas activas, capacitación sobre trabajo en equipo, riesgo psicosocial, SVE riesgo psicosocial ","No Aplica"]
[null,null,null,null,"Si","Utilización de grapadores, tijeras  ganchos, sacagrapas, exactos, perforadora, taches.  ","6.1. Mécanico","Pinchazos, golpes y cortes.","No Existente","No Existente","Autocuidado, charla sobre riesgo mecanico  ",2,2,3,"Medio",10,20,"IV",{"$f":"IF(R18=\"I\",\"No Aceptable\",IF(R18=\"II\",\"Aceptable con controles\",\"Aceptable\"))","v":"Aceptable"},30,"Lesiones leves en manos o brazos","Resolución 2400 de 1979 , Decreto 2106 de 2019 la modificó","No Aplica","No Aplica",null,"Capacitación sobre el riesgo mecánico incluido en la inducción y reinducción.capacitacion en identificacion peligros y evaluacion y controles de riesgo. Charlar sobre orden y aseo","no Aplica"]
[null,null,null,null,"Si","Recorrido por areas de la empresa, orden y aseo, almacenamientos, areas externas con distinto nivel. Carcamos zona abierta, zona de pozo profundo ","6.5. Locativo: Orden y Aseo","caida a nivel y distinto nivel  golpes, fracturas","demarcacion de zona de peligro ","encerramiento con cinta de peligro. ","induccion locativa, duvulgacion de los riesgos existentes ",6,4,{"$f":"L19*M19","v":24},{"$f":"IF(AND(N19>=24,N19<=40),\"Muy Alto\",IF(AND(20>=N19,10<=N19),\"Alto\",IF(AND(8>=N19,6<=N19),\"Medio\",IF(N19<=4,\"Bajo\",\"-\"))))","v":"Muy Alto"},10,{"$f":"N19*P19","v":240},{"$f":"IF(AND(Q19>=600,Q19<=4000),\"I\",IF(AND(500>=Q19,150<=Q19),\"II\",IF(AND(120>=Q19,40<=Q19),\"III\",IF(Q19<=20,\"IV\",\"-\"))))","v":"II"},{"$f":"IF(R19=\"I\",\"No Aceptable\",IF(R19=\"II\",\"Aceptable con controles\",\"Aceptable\"))","v":"Aceptable con controles"},30,"Golpes, heridas, fracturas, ","Resolución 2400 de 1979 , Decreto 2106 de 2019 la modificó","No Aplica","No Aplica","señaletica de riesgo de golpe en los muebles de almacenamiento ","Capacitación de prevención al riesgo locativo. Induccion locativa. Divulgacion de los riesgos existentes. ","No Aplica"]
["PROCESOS DE MEJORA CONTINUA","Jefe de control interno y calidad, Profesional de Seguridad y Salud en el trabajo.","Ejecución de labores administrativas (planear, organizar, coordinar y controlar)","Coordinar el sistema de Control Interno mediante la medición y evaluación de la eficiencia, eficacia de los sistemas de control, brindando asesoría continua al proceso administrativo, aplicando los correctivos necesarios para el cumplimiento de los objetivos de la empresa. Velar, y gestionar la promoción y prevención de la seguridad y la salud en los trabajadores de la entidad.","Si",".Utilización de grapadores, tijeras  ganchos, sacagrapas, exactos, perforadora, taches.  ","6.1. Mécanico","Pinchazos, golpes y cortes.","No Existente","No Existente","Autocuidado, charla sobre riesgo mecanico  y orden y aseo ",2,2,3,"Medio",10,20,"IV","Aceptable",30,"Lesiones leves en manos o brazos","Resolución 2400 de 1979 , Decreto 2106 de 2019 la modificó","No Aplica","No Aplica","encerramiento de zonas peligrosas con cinta de peligro ","Capacitación sobre el riesgo mecánico incluido en la inducción y reinducción.","no Aplica"]
[null,null,null,null,"Si","Robo, atraco, secuestro en actividades de gestión empresarial","6.8. Público (Robos, atracos, atentados, orden público,etc.)","Asaltos, lesiones personales, pérdidas humanas, traumas psicológicos, pérdidas materiales, fatalidad.","No Existente","analisis del entorno ","capacitacion en riesgo publico, divulgacion de los riesgos presentes ",6,4,24,"Muy Alto",10,240,"II","Aceptable con controles",30,"lesiones personales, pérdidas humanas, traumas psicológicos, pérdidas materiales, fatalidad.",null,"No Aplica","No Aplica","No Aplica","Capacitación de prevención al riesgo publico, cambio del horario laboral. ","No Aplica"]
[null,null,null,null,"si","Peligro de electrocusion (rack interno y externo )","6.2. Eléctrico (Alta y Baja tensión)","Quemaduras, descarga electrica, corto circuito, daños a propiedad.","señalizacion riego electrico , prohibido el paso a pernosal no autorizado ","No Existente","Autocuidado, charla riesgo electrico ",2,2,4,"Bajo",25,300,"II","Aceptable con controles",30,"Corriente de contacto, muerte ","Resolución 2400/89.","No Aplica","No Aplica","señalizacion riesgo electrico ","capacitacion sobre riesgo electrico.induccion locativa. ","utilizar ropa dielectrica y epp cuando se necesite ingresar a los rack electricos.  "]
[null,null,null,null,"Si","Malas posturas, jornadas largas de trabajos, movimientos repetitivos,  posturas sedentes algunas veces por tiempos largos","5.1. Biomecánico: Postura prolongada","Dolor Lumbar, Fatiga muscular,  afecciones músculo esqueléticas (cuello, espalda, brazos)","No Existente","No Existente","Silla Ergonómica, charla sobre ergonomia y tipos de postura ",2,"3",{"$f":"L23*M23","v":6},"Medio",10,{"$f":"N23*P23","v":60},"III","Aceptable",30,"disminuir la flexibilidad\nDegeneración de los músculos\nMala circulación en las piernas\nDisminución del ritmo cardíaco\nEnfermedades cardiovasculares\nDiabetes tipo 2\nLumbalgia ","Decreto 1072/2015,  Resolución 2844/2007","No Aplica","No Aplica","Reposa pies,  pad mouse"," Programa de Vigilancia Epidemiológica de Conservación Osteomuscular, capacitación en higiene postural, pausas activas  aotonomas cada 1 hora, organizarcion de actividades fisicas. \n","No Aplica"]
[null,null,null,null,"No","Accidentes de tránsito, y peligro público atraco, diligencias externas propias de la labor ","7.7. Condiciones de seguridad","Golpes, fracturas, laceraciones","No Existente","No Existente","divulgacion de los peligros existentes en el entorno ",6,2,12,"Alto",25,300,"II","Aceptable con controles",30,"Golpes, heridas, fracturas, muerte","Decreto 1072/2015,  Resolución 0312/19","No Aplica","No Aplica","No Aplica","capacitacion en riesgo publico , induccion locativa ","No Aplica"]
[null,null,null,null,"Si ","Gestion organizacional, responsabilidades altas del cargo, trabajo bajo presión, entrega de informes","4.3. Psicosocial: Caracteristicas del grupo social de trabajo","enfemedades mentales, estrés laboral","No Existente","No Existente","capacitaciones sobre prevencion del riesgo psicosocial y salud mental",2,2,4,{"$f":"IF(AND(N25>=24,N25<=40),\"Muy Alto\",IF(AND(20>=N25,10<=N25),\"Alto\",IF(AND(8>=N25,6<=N25),\"Medio\",IF(N25<=4,\"Bajo\",\"-\"))))","v":"Bajo"},25,100,{"$f":"IF(AND(Q25>=600,Q25<=4000),\"I\",IF(AND(500>=Q25,150<=Q25),\"II\",IF(AND(120>=Q25,40<=Q25),\"III\",IF(Q25<=20,\"IV\",\"-\"))))","v":"III"},{"$f":"IF(R25=\"I\",\"No Aceptable\",IF(R25=\"II\",\"Aceptable con controles\",\"Aceptable\"))","v":"Aceptable"},30,"Enfermedades mentales, estrés laboral","Resolución 2346 de ",null,"---","---","Capacitación para prevención al riesgo psicosocial y aplicación de la batería del riesgo psicosocial, ecuesta demografica ","No Aplica"]
["PROCESOS MISIONALES","Personal mediante contrato por prestación de servicios u otras modalidades de contratación(Profesional de gestión social, ambiental, de obra e infraestructuras y operaciones)","Ejecución de labores administrativas y operativas (planear, organizar, supervisar, coordinar y controlar)según la contratación o perfil de labores a ejecutar, se diligencia matriz especifica","Definidas según la contratación y su perfil según gestión cuando se requiera.","Si","Exposicion a roedores, insectos, restiles, plagas ","1.5. Biológico: Picaduras","Contraer la enfermedad: fiebre, tos, dificultad para respirar, flema, vomito, diarrea, cansancio y debilidad. Muerte en casos graves.","No Existente","Protocolo general de bioseguridad.","capacitaciones de higiene en lavado de manos, divulgacion de espcies en el entorno .",6,3,{"$f":"L26*M26","v":18},"Alto",25,450,"II","Aceptable con controles",30,"Resfriado, malestar general, fiebre, congestión nasal, tos. Infecciones, Alergias, Intoxicaciones, Envenenamiento","Ley 1562 de 2012, la Ley 9 de 1979, y el Decreto 1477 de 2014","---","---","---","capacitacion en riesgo publico , induccion locativa ","No Aplica"]
[null,null,null,null,"Si","Exposición a fuga de gas ,  suciedades y polvos originados de la atmósfera y desdechos orgánicos presentes en el ambiente","3.5. Químico: Gases y Vapores","intoxicacion, enfermedad respiratoria, explosion, incendio ","Limpieza de las áreas de trabajo, inspecciones preoperativas diarias ","señailizacion de seguridad ","Capacitacion en primeros auxilios, fuga de gas y extintores y control de fuego ",6,3,{"$f":"L27*M27","v":18},"Alto",25,450,"II","Aceptable con controles",30,"quemaduras, pérdida temporal de la conciencia , explosion, muerte. ","Resolución 948 de 2022, la Circular 26 de 2023, la Resolución 40066 de 2022, y la Norma Técnica Colombiana NTC 2505","No Aplica","no Aplica","señalizacion de seguridad eds y elementos de emergencia ","Capacitación sobre el riesgo químico, primeros auxilios, fuga de gas y control de fuego y tipo de extintores. ","Tapa bocas para las personas cumplan labores de limpieza y manipulación de documento "]
[null,null,null,null,"Si","derrames de aceites y grasas ","6.6. Tecnológico (Incendios, explosión, fugas, derrames, etc.)","rritación de vías respiratorias o neuropatías, quemaduras e irritaciones a la piel cuando existe contacto directo","kit de control de derrame de aceites y grasas ","No Existente","Autocuidado, uso de epp ",2,2,{"$f":"L28*M28","v":4},"Bajo",10,40,"III","Aceptable",0,"rritación de vías respiratorias o neuropatías, quemaduras e irritaciones a la piel cuando existe contacto directo","Decreto 1630 de 2021","No Aplica","No Aplica","eqyiquetado y hoja de segurdad de toda las sustancias peligrosas ","Capacitacion en sustancias peligrosas.","uso de epp "]
[null,null,null,null,"Si","Recorrido por areas de la empresa, orden y aseo, almacenamientos","6.5. Locativo: Orden y Aseo","caida a nivel, golpes, fracturas","No Existente","No Existente","No Existente",6,4,24,"Muy Alto",10,240,"II","Aceptable con controles",30,"Golpes, heridas, fracturas, ","Resolución 2400/89.","No Aplica","No Aplica","señalizacion de riesgo de golpe ","Capacitación de prevención al riesgo locativo","No Aplica"]
[null,null,null,null,"Si","Peligro de electrocusión ","6.2. Eléctrico (Alta y Baja tensión)","Quemaduras, descarga electrica, corto circuito, daños a propiedad.","señalizacion de puntos electricos ","señalizacion de prohibido el paso solo personas autorizadas ","autocuidado y charla sobre riesgo electrico ",2,2,4,"Bajo",10,40,"III","Aceptable",30,"Corriente de contacto","Resolución 2400/89.","No Aplica","No Aplica","No Aplica","Señalización de puntos eléctricos, capacitación en riesgo eléctrico y manejo adecuado de equipos. ","uso de epp y ropa dielectrica para el personal que designen "]
["TODOS ",null,null,null,"Si","Malas posturas, jornadas largas de trabajos, movimientos repetitivos,  posturas sedentes algunas veces por tiempos largos","5.1. Biomecánico: Postura prolongada","Dolor Lumbar, Fatiga muscular,  afecciones músculo esqueléticas (cuello, espalda, brazos)","No Existente","No Existente","Silla Ergonómica",2,"3",{"$f":"L31*M31","v":6},"Medio",10,{"$f":"N31*P31","v":60},"III","Aceptable",30,"Afecciones a nivel muscular, dolores lumbares, hormigueo en miembros inferiores.","Decreto 1072/2015,  Resolución 2844/2007","No Aplica","No Aplica","Reposa pies,  pad mouse","Programa de Vigilancia Epidemiológica de Conservación Osteomuscular, capacitación en higiene postural, pausas activas  \n","uso de epp y ropa dielectrica para el personal que designen "]
[null,null,null,null,"Si","exposicion a altas temperaturas ","2.8. Físico: Temperaturas extremas (calor)","Insolación\nGolpe de calor\nDeshidratación\nCalambres\nMareos\nNáuseas\nDolor de cabeza\nFatiga","No Existente","No Existente","Evitar la exposición al sol entre las 11:00 y las 16:00 horas \nVestir con ropa holgada y de colores claros \nHidratarse permanentemente \nUtilizar protector solar, mínimo FPS15 \nPonte lentes de sol, gorra y/o sombrero",6,3,18,"Alto",25,450,"II","Aceptable con controles",30,"Insolación\nGolpe de calor\nDeshidratación\nCalambres\nMareos\nNáuseas\nDolor de cabeza\nFatiga","Decreto 1072/2015,  Resolución 0312/19","No Aplica","No Aplica","No Aplica","charla sobre exposición prolongada al sol y a altas temperaturas","No Aplica"]
[null,null,null,null,"Si ","Características del grupo social de trabajo (Trabajadores, padres de familia)","4.2. Psicosocial: Caracteristicas de la organización del trabajo","Estrés laboral","No Existente","No Existente","No Existente",6,"3",18,"Alto",25,450,"II","Aceptable con controles",30,"Estrés Laboral, Ansiedad.","Resolución 2646/08, Decreto 1072/15","No Aplica","No Aplica","No Aplica","Pausas activas, capacitación sobre trabajo en equipo, riesgo psicosocial, SVE riesgo psicosocial ","No Aplica"]
[null,null,null,null,"Si","Exposición a entorno rural ","1.5. Biológico: Picaduras","Contraer la enfermedad: fiebre, tos, dificultad para respirar, flema, vomito, diarrea, cansancio y debilidad. Muerte en casos graves.","No Existente","poda de areas verdes y fumigacion","capacitaciones riesgo locativo autocuidado",6,3,{"$f":"L34*M34","v":18},{"$f":"IF(AND(N34>=24,N34<=40),\"Muy Alto\",IF(AND(20>=N34,10<=N34),\"Alto\",IF(AND(8>=N34,6<=N34),\"Medio\",IF(N34<=4,\"Bajo\",\"-\"))))","v":"Alto"},25,450,{"$f":"IF(AND(Q34>=600,Q34<=4000),\"I\",IF(AND(500>=Q34,150<=Q34),\"II\",IF(AND(120>=Q34,40<=Q34),\"III\",IF(Q34<=20,\"IV\",\"-\"))))","v":"II"},{"$f":"IF(R34=\"I\",\"No Aceptable\",IF(R34=\"II\",\"Aceptable con controles\",\"Aceptable\"))","v":"Aceptable con controles"},30,"Resfriado, malestar general, fiebre, congestión nasal, tos.","Resolución 692 de 2022","---","---","---","Capacitaciones  de autocuidado, tener el esquema de vacunación completo, sensibilización de lavado de manos, uso de gel antibacterial, alcohol, manejo y correcto uso de tapa bocas y guantes, toser, estornudar, limitar la interacción con personas y mantener distancia superior a 2 metros.","Tapa bocas para las personas que presenten síntomas"]
[null,null,null,null,"Si","Peligro Locativo, Potenciales caidas a mismo nivel debido a la falta de orden y aseo del área, obstrucción de vías de circulación.","6.4. Locativo: Superficies de trabajo (Irregulares, deslizantes y desnivel)","Golpes, fracturas, laceraciones","No Existente","No Existente","Elementos de protección personal, autocuidado",6,3,18,"Alto",25,450,"II","Aceptable con controles",30,"Lesiones en huesos largos, politraumatismos.","Resolución 2400/89.","---","---","---","Implementar el Sistema de gestión de seguridad y salud en el trabajo, inspecciones de seguridad, etc.","No Aplica"]
[null,null,null,null,"Si","Sismo, inundación, Temblor, deslizamientos","7.6. Precipitaciones (granizadas, lluvias, etc.)","Alteración de nervios, heridos, golpes,  lesiones corporales.","No Existente","No Existente","Capacitaciones brigadistas, simulacro de emergencia.",6,2,{"$f":"L36*M36","v":12},{"$f":"IF(AND(N36>=24,N36<=40),\"Muy Alto\",IF(AND(20>=N36,10<=N36),\"Alto\",IF(AND(8>=N36,6<=N36),\"Medio\",IF(N36<=4,\"Bajo\",\"-\"))))","v":"Alto"},25,{"$f":"N36*P36","v":300},{"$f":"IF(AND(Q36>=600,Q36<=4000),\"I\",IF(AND(500>=Q36,150<=Q36),\"II\",IF(AND(120>=Q36,40<=Q36),\"III\",IF(Q36<=20,\"IV\",\"-\"))))","v":"II"},{"$f":"IF(R36=\"I\",\"No Aceptable\",IF(R36=\"II\",\"Aceptable con controles\",\"Aceptable\"))","v":"Aceptable con controles"},30,"Estrés postraumático, paro cardiaco, muerte.","Resolución 1016/89, Resolución 2400/79, Decreto 1072/20, Resolución 0312/19","No Aplica","No Aplica","No Aplica","Plan de emergencia, Capacitaciones a brigadistas,  capacitación como actuar en caso de emergencia,  funcionamiento de los PONS. ","Chalecos para brigadistas"]
[null,null,null,null,"SI"," (explosión, fuga,\nderrame, incendio, fallas estructurales, fallas en equipos y sistemas), durante la permanencia en las instalaciones o en cualquier proyecto cuando aplique.","6.6. Tecnológico (Incendios, explosión, fugas, derrames, etc.)","Quemaduras, inhalacion de humos, muerte, daños a la propiedad","No Existente","Extintores en las areas necesarias","Capacitación en caso de emergencia y uso de extintores ",2,2,{"$f":"L37*M37","v":4},{"$f":"IF(AND(N37>=24,N37<=40),\"Muy Alto\",IF(AND(20>=N37,10<=N37),\"Alto\",IF(AND(8>=N37,6<=N37),\"Medio\",IF(N37<=4,\"Bajo\",\"-\"))))","v":"Bajo"},25,{"$f":"N37*P37","v":100},{"$f":"IF(AND(Q37>=600,Q37<=4000),\"I\",IF(AND(500>=Q37,150<=Q37),\"II\",IF(AND(120>=Q37,40<=Q37),\"III\",IF(Q37<=20,\"IV\",\"-\"))))","v":"III"},{"$f":"IF(R37=\"I\",\"No Aceptable\",IF(R37=\"II\",\"Aceptable con controles\",\"Aceptable\"))","v":"Aceptable"},30,"Estrés postraumático, paro cardiaco, muerte.","Resolución 1016/89, Resolución 2400/79, Decreto 1072/20, Resolución 0312/19","No Aplica","No Aplica","No Aplica","Plan de emergencia, Capacitaciones a brigadistas,  capacitación como actuar en caso de emergencia,  funcionamiento de los PONS. ","Extintores en area y dotación a brigadistas"]

{"sheet":"METODOLOGIA ANEXO1 ","index":1,"n_rows":108,"n_cols":10,"rows_kept":108,"cut":false,"hidden":false,"merged":[[41,0,41,8],[26,0,26,1],[27,0,27,1],[28,0,28,1],[29,0,29,1],[32,0,33,1],[34,0,39,0],[35,1,36,1],[32,2,32,7],[26,3,26,7],[27,3,27,7],[28,3,28,7],[29,3,29,7],[30,0,30,13],[33,3,33,4],[34,3,34,4],[32,9,32,10],[33,6,33,7],[38,1,39,1],[38,2,39,2],[38,3,38,4],[38,5,39,5],[38,6,38,7],[39,3,39,4],[39,6,39,7],[35,2,36,2],[35,5,36,5],[35,6,35,7],[36,6,36,7],[37,6,37,7],[35,3,36,4],[37,3,37,4],[22,0,22,9],[24,0,25,1],[24,2,25,2],[24,3,24,7],[25,3,25,7],[20,3,20,4],[16,2,16,7],[17,3,17,4],[17,6,17,7],[18,0,20,0],[18,3,18,4],[18,6,18,7],[19,6,19,7],[20,6,20,7],[34,6,34,7],[0,0,1,2],[0,3,1,14],[2,0,2,14],[3,0,3,14],[4,0,4,14],[5,0,5,14],[6,0,6,14],[7,0,7,14],[8,0,8,14],[9,0,9,2],[14,0,14,7],[14,9,14,11],[15,0,15,1],[16,0,17,1],[19,3,19,4]]}
["SIVA S.A.S",null,null,"ANEXO 1 METODOLOGIA DE IDENTIFICACION DE PELIGROS Y EVALUACION DE RIESGOS "]
[]
["DEFINICIONES"]
["PELIGRO: Es una fuente o situación con potencial de daño en términos de lesión o enfermedad, daño a la propiedad, al ambiente de trabajo o una combinación de éstos.\nRIESGO: Combinación de la probabilidad de que ocurra un(os) evento(s) o exposición(es) peligro(s), y la severidad de la lesión o enfermedad profesional que puede ser causada por el (los) evento(s) o exposición(es).\nRIESGO ACEPTABLE: Riesgo que ha sido reducido aun nivel que la organización puede tolerar, respecto a sus obligaciones legales y sus propia política en seguridad y salud ocupacional.\nVALORACION DEL RIESGO: Proceso de evaluar el (los) riesgos que surgen de unos peligros, teniendo en cuenta la suficiencia de los controles existentes y de decidir si el o los riesgos son aceptables o no.\nACTIVIDADES RUTINARIAS (R) - Aquellas que se realizan periódicamente (no forzosamente de manera frecuente), en las cuales se pueden inferir todas sus condiciones, de tal manera que se identifican los peligros y se evalúan los riesgos para definir las medidas de control que se implementan y mantienen regularmente.\nACTIVIDADES NO RUTINARIAS (NR) - Aquellas que se salen de la operación normal y no responden a condiciones fácilmente estandarizables, debido a la diversidad de escenarios que podrían presentarse, lo cual resulta impráctico de generalizar y conviene, mejor, tratarlas como un caso especial en cada oportunidad. Esto implica la identificación de peligros particulares y la evaluación de los riesgos asociados con el propósito de aplicar las medidas de control disponibles y agregar las necesarias para exponer a las personas únicamente a riesgos tolerables.\nCONSECUENCIA: Resultado, en términos de lesión o enfermedad, de la materialización de un riesgo, expresado cualitativa o cuantitativamente.\nANALISIS DEL RIESGOS: Proceso para comprender la naturaleza del riesgo y determinar el nivel del riesgo.\nLUGAR DE TRABAJO: Espacio físico en que se realizan actividades relacionadas con el trabajo, bajo el control de la organización.\nNIVEL DE CONSECUENCIA (NC): Medida de la severidad de las consecuencias.\nNIVEL DE DEFICIENCIA (ND): Magnitud de la relación esperable entre (1) el conjunto de peligros detectados y su relación causal directa con posibles incidentes y (2), con la eficacia de las medidas preventivas existentes en el lugar de trabajo.\nNIVEL DE EXPOSICIÓN (NE): Situación de exposición a un peligro que se presenta en un tiempo determinado durante la jornada laboral.\nNIVEL DE PROBABILIDAD (NP): Producto del nivel de deficiencia por el nivel de exposición.\nNIVEL DE RIESGO: Magnitud de un riesgo resultado del producto del nivel de probabilidad por el nivel de consecuencia.\nPROBABILIDAD: Grado de posibilidad de que ocurra un evento no deseado y pueda producir consecuencias.\nMEIDIDAS DE INTEVENCIÓN:\nELIMINACIÓN: Modificar un diseño para eliminar el peligro; ejemplo: introducir mecanismo mecánicos para levantamiento de cargas.\nSUSTITUCION: Reemplazar por un material menos peligroso o reducir la energía del sistema (amperaje, presión, temperatura)\nCONTROLES DE INGENIERIA: Instalar sistemas de protección para las maquinas, ventilación, enclavamiento, etc.\nCONTROLES ADMINISTRATIVOS, SEÑALIZACIÓN, ADVERTENCIAS: Instalación de alarmas, procedimientos de seguridad, inspecciones de los equipos, capacitación al personal.\nELEMENTOS DE PROTECCIÓN PERSONAL: Aquellos que protejan al trabajador de la exposición al riesgo."]
["IDENTIFICACION DE PELIGROS Y VALORACION DE RIESGOS"]
[" * Para la aplicación de esta metodología solo se debe calificar en el formato \"Matriz de identificación de peligros, valoración de riesgos y determinación de controles\"; los niveles:  ND, NE y NC definidos en los ítems 1, 2 y 4; los demás ítems son para entender el significado del resultado,  ya están formulados y aparecen automáticamente en el formato. "]
["EVALUACION DE LOS RIESGOS: Corresponde al proceso de determinar la probabilidad de que ocurran eventos específicos y la magnitud de sus consecuencias, mediante el uso sistemático de la información."]
["1. El nivel del riesgo se determina por:  NR = NP (Nivel Probabilidad) x NC (Nivel de Consecuencia)"]
["2. A su vez el NP se determina por:  NP = ND (Nivel de Deficiencia) x NE (Nivel de Exposición)"]
["TABLA 1. NIVEL DE DEFICIENCIA (ND)",null,null,null,null,null,null,null,"TABLA 2. NIVEL DE EXPOSICION (NE)"]
[]
[]
[]
[]
["3. Para determinar el Nivel de Probabilidad (NP) se combinan los resultados de la tabla 1 y 2 en la tabla 3,  (La tabla 3 y 4 es solo para explicar el resultado y significado del NP, ya que en el formato \"Matriz de identificación de peligros, valoración de riesgos y determinación de controles\", esta formulado y el resultado saldrá automáticamente:",null,null,null,null,null,null,null,null,"TABLA 4. SIGNIFICADO NIVELES DE PROBABILIDAD"]
["TABLA 3. NIVEL DE PROBABILIDAD"]
["Niveles de probabilidad",null,"Nivel de exposición (NE)"]
[null,null,4,3,null,2,1]
["Niveles de Deficiencia",10,"MA - 40","MA - 30",null,"A -20","A - 10"]
[null,6,"MA - 24","A - 18",null,"A -12","M - 6 "]
[null,2,"M -   8","M - 6",null,"B - 4","B - 12"]
[]
["4. Determinación del nivel de consecuencia (NC), para evaluar este nivel, tenga en cuenta la consecuencia directa más grave que se pueda presentar en la actividad valorada:"]
["TABLA 5. NIVEL DE CONSECUENCIA (NC)"]
["Nivel de consecuencias",null,"NC","Significado"]
[null,null,null,"Daños Personales"]
["Mortal o catastrófico (M)",null,100,"Muerte(s)"]
["Muy Grave (MG)",null,60,"Lesiones o enfermedades graves irreparables (incapacidad permanente parcial o invalidez)"]
["Grave (G)",null,25,"Lesiones o enfermedades con incapacidad laboral temporal (ILT)"]
["Leve (L)",null,10,"Lesiones o enfermedades que no requieren incapacidad"]
["5. Determinación del nivel de riesgo (NR), los resultados de las tablas 4 y 5 se combinan para obtener el nivel del riesgo (tabla 6), (La tabla 6 y 7 es solo para explicar el resultado y significado NR, ya que en el formato \"Matriz de identificación de peligros, valoración de riesgos y determinación de controles\", esta formulado y el resultado saldrá automáticamente:"]
["TABLA 6. NIVEL DE  RIESGO"]
["Nivel de riesgo\nNR = NP x NC",null,"Nivel de Probabilidad (NP)",null,null,null,null,null,null,"TABLA 7. SIGNIFICADO NIVEL DE  RIESGO"]
[null,null,"40 - 24"," 20 -10",null," 8 - 6 "," 4 -2"]
["Nivel de Consecuencia (NP)",100,"I\n4000 - 2400","I\n2000 -1200",null,"I\n800 - 600","II\n400 - 200"]
[null,60,"I\n2400 - 1440","I\n1200 - 600",null,"II\n480 - 360","II 200"]
[null,null,null,null,null,null,"III 120"]
[null,25,"I\n1000 - 600","II\n500 - 250",null,"II\n200 - 150","III\n100 -50"]
[null,10,"II\n400 - 240","II   200                                                                                                                      III 100",null,"III\n80 -60","III 40"]
[null,null,null,"III 100",null,null,"IV 20"]
[]
["6. Aceptabilidad del riesgo, una vez determinado el nivel de riesgo (NR) se determina si es aceptable o no con base en :"]
[]
[null,null,null,null,"TABLA 8. ACEPTABILIDAD DEL  RIESGO"]
[]
[]
[" * METODOLOGIA GTC 45/2012."]
[]
[]
[]
[null,"PELIGROS"]
[null,"1.1. Biológico: Bacterias"]
[null,"1.2. Biológico: Virus"]
[null,"1.3. Biológico: Parasitos"]
[null,"1.4. Biológico: Hongos"]
[null,"1.5. Biológico: Picaduras"]
[null,"1.6. Biológico: Mordeduras"]
[null,"1.7. Biológico: Fluidos y excrementos"]
[null,"2.1. Físico: Ruido de impacto"]
[null,"2.2. Fisíco Ruido intermintente"]
[null,"2.3. Físico: Ruido continuo"]
[null,"2.4. Físico: Iluminación deficiente"]
[null,"2.5. Físico: Iluminación en exceso"]
[null,"2.6. Físico: Vibración cuerpo entero"]
[null,"2.7. Físico: Vibración segmentaria"]
[null,"2.8. Físico: Temperaturas extremas (calor)"]
[null,"2.9. Físico: Temperaturas extremanas (Frío)"]
[null,"2.10. Presión atmosferica"]
[null,"2.11. Fisíco: Radiaciones Ionizantes"]
[null,"2.12. Fisíco: Radiaciones No Ionizantes"]
[null,"3.1. Químico: Polvos orgánicos"]
[null,"3.2. Químico: Polvos Inorgánicos"]
[null,"3.3. Químico: Fibras"]
[null,"3.4. Químico: Líquidos (Rocio y nieblas)"]
[null,"3.5. Químico: Gases y Vapores"]
[null,"3.6. Químico: Humos Métalicos"]
[null,"3.7. Químico: Humos No Metálicos"]
[null,"3.8. Químico: Material partículado"]
[null,"4.1. Psicosocial: Gestión organizacional"]
[null,"4.2. Psicosocial: Caracteristicas de la organización del trabajo"]
[null,"4.3. Psicosocial: Caracteristicas del grupo social de trabajo"]
[null,"4.4. Psicosocial: Condiciones de la tarea"]
[null,"4.5. Psicosocial: Interfase Persona- Tarea"]
[null,"4.6. Psicosocial: Jornada de trabajo"]
[null,"5.1. Biomecánico: Postura prolongada"]
[null,"5.2. Biomecánico: Postura mantenida"]
[null,"5.3. Biomecánico: Postura forzada"]
[null,"5.4. Biomecánico: Postura antigravitacional"]
[null,"5.5. Biomecánico: Esfuerzo"]
[null,"5.6. Biomecánico: Movimientos repetitivos"]
[null,"5.7. Biomecánico: Manipulación manual de cargas"]
[null,"6.1. Mécanico"]
[null,"6.2. Eléctrico (Alta y Baja tensión)"]
[null,"6.3. Locativo: Almacenamiento"]
[null,"6.4. Locativo: Superficies de trabajo (Irregulares, deslizantes y desnivel)"]
[null,"6.5. Locativo: Orden y Aseo"]
[null,"6.6. Tecnológico (Incendios, explosión, fugas, derrames, etc.)"]
[null,"6.7. Accidentes de transito"]
[null,"6.8. Público (Robos, atracos, atentados, orden público,etc.)"]
[null,"6.9. Trabajo en alturas"]
[null,"6.10. Espacios confinados"]
[null,"7.1. Sismos"]
[null,"7.2. Terremotos"]
[null,"7.3. Vendaval"]
[null,"7.4. Inundación"]
[null,"7.5. Derrumbes"]
[null,"7.6. Precipitaciones ( lluvias, etc.)"]
[null,"7.7. Condiciones de seguridad"]